fUSD/lending_fUSD_20250422
["ID","MTS","AMOUNT","RATE_DAILY","PERIOD"]
[358650342,1745335858175,-562.0,0.00048,120]
[358650343,1745335858187,-288.36519,0.00048,14]
[358650344,1745335858197,-151.0,0.00048,14]
[358650345,1745335858208,-288.36519,0.00048,14]
[358650346,1745335858219,-351.11975,0.00048,14]
[358650347,1745335858232,-351.11975,0.00048,14]
[358650348,1745335858242,-151.0,0.00048,14]
[358650349,1745335858252,-151.0,0.00048,14]
[358650350,1745335858262,-151.0,0.00048,14]
[358650351,1745335858272,-676.30667382,0.00048,120]
[358650352,1745335858282,-500.0,0.00048,120]
[358650353,1745335858292,-151.0,0.00048,14]
[358650354,1745335858302,-161.414771,0.00048,14]
[358650355,1745335858312,-151.0,0.00048,14]
[358650356,1745335858321,-151.0,0.00048,14]
[358650357,1745335858331,-231.879686,0.00048,14]
[358650358,1745335858342,-231.879686,0.00048,14]
[358650359,1745335858352,-824.702684,0.00048,14]
[358650360,1745335858362,-824.702684,0.00048,14]
[358650361,1745335858373,-1383.518249,0.00048,103]
[358650362,1745335858383,-150.0,0.00048004,30]
[358650363,1745335858394,-150.0,0.00048004,30]
[358650364,1745335858404,-150.0,0.00048004,30]
[358650365,1745335858415,-1148.47,0.00048081,30]
[358650366,1745335858425,-500.0,0.00048103,120]
[358650367,1745335858435,-2000.0,0.00048103,120]
[358650368,1745335858446,-500.0,0.00048103,120]
[358650369,1745335858456,-500.0,0.00048103,120]
[358650370,1745335858466,-200.0,0.00048103,120]
[358650371,1745335858479,-194.85798224,0.00048117,30]
[358650372,1745335858490,-676.30667382,0.00048192,120]
[358650373,1745335858500,-439.0,0.00048219,120]
[358650374,1745335858511,-500.0,0.00048219,120]
[358650375,1745335858522,-478.22816322,0.00048219,120]
[358650376,1745335858532,-200.0,0.00048238,30]
[358650377,1745335858542,-155.10302643,0.0004835,2]
[358650378,1745335858552,-676.30667382,0.00048384,120]
[358650379,1745335858562,-600.0,0.000484,120]
[358650380,1745335858573,-439.0,0.00048493,120]
[358650381,1745335858584,-500.0,0.00048493,120]
[358650382,1745335858595,-3547.88,0.000485,2]
[358650383,1745335858605,-200.0,0.000485,120]
[358650384,1745335858616,-500.0,0.000485,120]
[358650385,1745335858626,-200.0,0.000485,75]
[358650386,1745335858637,-676.30667382,0.00048575,120]
[358650387,1745335858647,-500.0,0.000486,120]
[358650388,1745335858657,-395.01,0.000486,45]
[358650389,1745335858668,-395.01,0.000486,45]
[358650390,1745335858677,-395.01,0.000486,45]
[358650391,1745335858688,-395.01,0.000486,45]
[358650392,1745335858699,-395.01,0.000486,45]
[358650393,1745335858709,-395.01,0.000486,45]
[358650394,1745335858719,-395.01,0.000486,45]
[358650395,1745335858731,-395.01,0.000486,45]
[358650396,1745335858741,-395.01,0.000486,45]
[358650397,1745335858751,-395.01,0.000486,45]
[358650398,1745335858761,-395.01,0.000486,45]
[358650399,1745335858771,-395.01,0.000486,45]
[358650400,1745335858782,-410.66,0.00048729,120]
[358650401,1745335858792,-180.0,0.00048729,10]
[358650402,1745335858801,-676.30667382,0.0004874,120]
[358650403,1745335858812,-439.0,0.00048767,120]
[358650404,1745335858822,-455.0,0.00048767,120]
[358650405,1745335858832,-200.0,0.000488,76]
[358650406,1745335858843,-492.29,0.00048855,2]
[358650407,1745335858852,-150.0,0.00048869,120]
[358650408,1745335858862,-150.0,0.00048899,3]
[358650409,1745335858873,-151.0,0.000489,14]
[358650410,1745335858884,-151.0,0.000489,14]
[358650411,1745335858894,-199637.82951316,0.000489,60]
[358650412,1745335858904,-153.003464,0.000489,14]
[358650413,1745335858919,-151.0,0.000489,14]
[358650414,1745335858929,-443.183524,0.000489,14]
[358650415,1745335858940,-443.183524,0.000489,14]
[358650416,1745335858949,-609.764686,0.000489,14]
[358650417,1745335858962,-609.764686,0.000489,14]
[358650418,1745335858973,-176.148123,0.000489,14]
[358650419,1745335858983,-176.148123,0.000489,14]
[358650420,1745335858994,-349.917181,0.000489,14]
[358650421,1745335859005,-349.917181,0.000489,14]
[358650422,1745335859015,-285.422169,0.000489,14]
[358650423,1745335859026,-285.422169,0.000489,14]
[358650424,1745335859036,-1411.84761,0.000489,14]
[358650425,1745335859046,-1411.84761,0.000489,14]
[358650426,1745335859056,-151.0,0.000489,14]
[358650427,1745335859067,-3780.561063,0.000489,14]
[358650428,1745335859077,-3780.561063,0.000489,14]
[358650429,1745335859087,-857.907178,0.000489,14]
[358650430,1745335859097,-857.907178,0.000489,14]
[358650431,1745335859108,-683.668956,0.000489,14]
[358650432,1745335859118,-683.668956,0.000489,14]
[358650433,1745335859127,-182.903621,0.000489,14]
[358650434,1745335859137,-151.0,0.000489,14]
[358650435,1745335859147,-6404.165937,0.000489,14]
[358650436,1745335859363,-6404.165937,0.000489,14]
[358650437,1745335859375,-861.786757,0.000489,14]
[358650438,1745335859386,-861.786757,0.000489,14]
[358650439,1745335859396,-233.28413,0.000489,14]
[358650440,1745335859406,-220.791811,0.000489,14]
[358650441,1745335859415,-233.28413,0.000489,14]
[358650442,1745335859425,-220.791811,0.000489,14]
[358650443,1745335859434,-528.039271,0.000489,14]
[358650444,1745335859444,-151.0,0.000489,14]
[358650445,1745335859454,-151.0,0.000489,14]
[358650446,1745335859464,-528.039271,0.000489,14]
[358650447,1745335859474,-55808.74851242,0.000489,60]
[358650448,1745335859484,-320.208297,0.000489,14]
[358650449,1745335859493,-320.208297,0.000489,14]
[358650450,1745335859503,-189.028053,0.000489,14]
[358650451,1745335859512,-189.028053,0.000489,14]
[358650452,1745335859522,-151.0,0.000489,14]
[358650453,1745335859532,-151.0,0.000489,14]
[358650454,1745335859542,-2000.0,0.00048987,31]
[358650455,1745335859551,-263.01,0.0004899,120]
[358650456,1745335859561,-624.0,0.00049,120]
[358650457,1745335859571,-742.38552444,0.00049,120]
[358650458,1745335859582,-22146.0,0.00049,3]
[358650459,1745335859592,-847.07464175,0.00049,4]
[358650460,1745335859602,-200.0,0.00049,120]
[358650461,1745335859612,-584.07,0.00049,2]
[358650462,1745335859622,-3967.85,0.00049,14]
[358650463,1745335859631,-500.0,0.00049,120]
[358650464,1745335859640,-500.0,0.00049,120]
[358650465,1745335859650,-151.0,0.00049,14]
[358650466,1745335859659,-155.276307,0.00049,14]
[358650467,1745335859669,-151.0,0.00049,14]
[358650468,1745335859678,-151.0,0.00049,14]
[358650469,1745335859688,-251.148032,0.00049,14]
[358650470,1745335859697,-251.148032,0.00049,14]
[358650471,1745335859707,-151.0,0.00049,14]
[358650472,1745335859717,-151.0,0.00049,14]
[358650473,1745335859728,-151.0,0.00049,14]
[358650474,1745335859739,-151.0,0.00049,14]
[358650475,1745335859748,-151.0,0.00049,14]
[358650476,1745335859758,-220.287975,0.00049,14]
[358650477,1745335859768,-220.287975,0.00049,14]
[358650478,1745335859778,-225.295429,0.00049,14]
[358650479,1745335859789,-230.814725,0.00049,14]
[358650480,1745335859799,-225.295429,0.00049,14]
[358650481,1745335859809,-230.814725,0.00049,14]
[358650482,1745335859819,-153.34803,0.00049,14]
[358650483,1745335859828,-237.710209,0.00049,14]
[358650484,1745335859837,-237.710209,0.00049,14]
[358650485,1745335859847,-151.0,0.00049,14]
[358650486,1745335859856,-1925.17834,0.00049,14]
[358650487,1745335859866,-1925.17834,0.00049,14]
[358650488,1745335859875,-1629.145313,0.00049,14]
[358650489,1745335859885,-1629.145313,0.00049,14]
[358650490,1745335859895,-151.0,0.00049,14]
[358650491,1745335859904,-151.0,0.00049,14]
[358650492,1745335859915,-153.540532,0.00049,14]
[358650493,1745335859929,-153.540532,0.00049,14]
[358650494,1745335859939,-155.568167,0.00049,14]
[358650495,1745335859948,-151.0,0.00049,14]
[358650496,1745335859958,-151.0,0.00049,14]
[358650497,1745335859968,-3967.85,0.00049,14]
[358650498,1745335859979,-390.66258475,0.00049,30]
[358650499,1745335859988,-151.0,0.00049,14]
[358650500,1745335859998,-19551.51,0.00049,60]
[358650501,1745335860007,-206.109523,0.00049,14]
[358650502,1745335860016,-439.0,0.00049041,120]
[358650503,1745335860025,-151.0,0.00049099,14]
[358650504,1745335860035,-192.936505,0.00049099,14]
[358650505,1745335860044,-192.936505,0.00049099,14]
[358650506,1745335860054,-151.0,0.00049099,14]
[358650507,1745335860064,-310.74,0.00049128,30]
[358650508,1745335860075,-151.0,0.00049282,14]
[358650509,1745335860085,-151.0,0.00049282,14]
[358650510,1745335860095,-208.409142,0.00049282,14]
[358650511,1745335860106,-208.409142,0.00049282,14]
[358650512,1745335860115,-151.0,0.00049282,14]
[358650513,1745335860125,-151.0,0.00049282,14]
[358650514,1745335860135,-151.0,0.00049282,14]
[358650515,1745335860145,-151.0,0.00049282,14]
[358650516,1745335860154,-961.109523,0.00049282,14]
[358650517,1745335860164,-961.109523,0.00049282,14]
[358650518,1745335860174,-439.0,0.00049315,120]
[358650519,1745335860184,-151.0,0.00049315,14]
[358650520,1745335860193,-151.0,0.00049315,14]
[358650521,1745335860203,-151.0,0.00049315,14]
[358650522,1745335860212,-151.0,0.00049315,14]
[358650523,1745335860223,-152.186648,0.00049315,14]
[358650524,1745335860233,-151.0,0.00049315,14]
[358650525,1745335860242,-202.891519,0.00049315,14]
[358650526,1745335860251,-151.0,0.00049315,14]
[358650527,1745335860262,-202.891519,0.00049315,14]
[358650528,1745335860271,-1268.68528,0.00049315,14]
[358650529,1745335860281,-1268.68528,0.00049315,14]
[358650530,1745335860290,-288.139586,0.00049315,14]
[358650531,1745335860301,-288.139586,0.00049315,14]
[358650532,1745335860310,-175.442798,0.00049315,14]
[358650533,1745335860321,-175.442798,0.00049315,14]
[358650534,1745335860331,-151.0,0.00049315,14]
[358650535,1745335860341,-151.0,0.00049315,14]
[358650536,1745335860352,-151.0,0.00049315,14]
[358650537,1745335860361,-215.840883,0.00049315,14]
[358650538,1745335860371,-215.840883,0.00049315,14]
[358650539,1745335860380,-1000.0,0.00049315,120]
[358650540,1745335860390,-1000.0,0.00049315,9]
[358650541,1745335860399,-1000.0,0.00049315,9]
[358650542,1745335860409,-1000.0,0.00049315,9]
[358650543,1745335860419,-1000.0,0.00049315,9]
[358650544,1745335860428,-1000.0,0.00049315,9]
[358650545,1745335860438,-1000.0,0.00049315,9]
[358650546,1745335860447,-1000.0,0.00049315,9]
[358650547,1745335860457,-1000.0,0.00049315,9]
[358650548,1745335860467,-1000.0,0.00049315,9]
[358650549,1745335860477,-1000.0,0.00049315,9]
[358650550,1745335860487,-1000.0,0.00049315,9]
[358650551,1745335860496,-1000.0,0.00049315,9]
[358650552,1745335860506,-1000.0,0.00049315,9]
[358650553,1745335860516,-1000.0,0.00049315,9]
[358650554,1745335860526,-1000.0,0.00049315,9]
[358650555,1745335860536,-1000.0,0.00049315,9]
[358650556,1745335860546,-1000.0,0.00049315,9]
[358650557,1745335860557,-1000.0,0.00049315,9]
[358650558,1745335860566,-1000.0,0.00049315,9]
[358650559,1745335860576,-1000.0,0.00049315,9]
[358650560,1745335860586,-1000.0,0.00049315,9]
[358650561,1745335860596,-1000.0,0.00049315,9]
[358650562,1745335860607,-1000.0,0.00049315,9]
[358650563,1745335860617,-1000.0,0.00049315,9]
[358650564,1745335860627,-1000.0,0.00049315,9]
[358650565,1745335860636,-1000.0,0.00049315,9]
[358650566,1745335860646,-1000.0,0.00049315,9]
[358650567,1745335860659,-1000.0,0.00049315,9]
[358650568,1745335860671,-1000.0,0.00049315,9]
[358650569,1745335860680,-1000.0,0.00049315,9]
[358650570,1745335860692,-1000.0,0.00049315,9]
[358650571,1745335860701,-1000.0,0.00049315,9]
[358650572,1745335860711,-1000.0,0.00049315,9]
[358650573,1745335860721,-1000.0,0.00049315,9]
[358650574,1745335860732,-1000.0,0.00049315,9]
[358650575,1745335860742,-1000.0,0.00049315,9]
[358650576,1745335860751,-1000.0,0.00049315,9]
[358650577,1745335860762,-1000.0,0.00049315,9]
[358650578,1745335860773,-1000.0,0.00049315,9]
[358650579,1745335860783,-1000.0,0.00049315,9]
[358650580,1745335860793,-1000.0,0.00049315,9]
[358650581,1745335860803,-1000.0,0.00049315,9]
[358650582,1745335860813,-953.0,0.00049315,9]
[358650583,1745335860822,-1000.0,0.00049315,9]
[358650584,1745335860832,-1000.0,0.00049315,9]
[358650585,1745335860842,-1000.0,0.00049315,9]
[358650586,1745335860852,-1000.0,0.00049315,9]
[358650587,1745335860862,-1000.0,0.00049315,9]
[358650588,1745335860872,-1000.0,0.00049315,9]
[358650589,1745335860882,-1000.0,0.00049315,9]
[358650590,1745335860892,-1000.0,0.00049315,9]
[358650591,1745335860902,-1000.0,0.00049315,9]
[358650592,1745335860912,-1000.0,0.00049315,9]
[358650593,1745335860923,-1000.0,0.00049315,9]
[358650594,1745335860934,-1000.0,0.00049315,9]
[358650595,1745335860944,-1000.0,0.00049315,9]
[358650596,1745335860955,-1000.0,0.00049315,9]
[358650597,1745335860964,-1000.0,0.00049315,9]
[358650598,1745335860975,-1000.0,0.00049315,9]
[358650599,1745335860984,-1000.0,0.00049315,9]
[358650600,1745335860995,-1000.0,0.00049315,9]
[358650601,1745335861004,-1000.0,0.00049315,9]
[358650602,1745335861014,-1000.0,0.00049315,9]
[358650603,1745335861024,-1000.0,0.00049315,9]
[358650604,1745335861034,-1000.0,0.00049315,9]
[358650605,1745335861043,-1000.0,0.00049315,9]
[358650606,1745335861053,-1000.0,0.00049315,9]
[358650607,1745335861063,-1000.0,0.00049315,9]
[358650608,1745335861074,-1000.0,0.00049315,9]
[358650609,1745335861084,-1000.0,0.00049315,9]
[358650610,1745335861094,-1000.0,0.00049315,9]
[358650611,1745335861104,-1000.0,0.00049315,9]
[358650612,1745335861114,-1000.0,0.00049315,9]
[358650613,1745335861124,-1000.0,0.00049315,9]
[358650614,1745335861133,-1000.0,0.00049315,9]
[358650615,1745335861144,-1000.0,0.00049315,9]
[358650616,1745335861154,-917.0,0.00049315,9]
[358650617,1745335861163,-1000.0,0.00049315,9]
[358650618,1745335861173,-222.0,0.00049315,9]
[358650619,1745335861183,-1000.0,0.00049315,9]
[358650620,1745335861192,-1000.0,0.00049315,9]
[358650621,1745335861201,-1000.0,0.00049315,9]
[358650622,1745335861211,-1000.0,0.00049315,9]
[358650623,1745335861221,-1000.0,0.00049315,9]
[358650624,1745335861234,-1000.0,0.00049315,9]
[358650625,1745335861244,-1000.0,0.00049315,9]
[358650626,1745335861253,-1000.0,0.00049315,9]
[358650627,1745335861263,-160.08,0.00049315,30]
[358650628,1745335861272,-408.36175147,0.00049342,120]
[358650629,1745335861282,-4000.0,0.000494,2]
[358650630,1745335861292,-200.0,0.000495,120]
[358650631,1745335861301,-200.0,0.000495,79]
[358650632,1745335861311,-3000.0,0.000495,2]
[358650633,1745335861321,-439.71157466,0.000495,120]
[358650634,1745335861331,-10216.0577607,0.000495,10]
[358650635,1745335861341,-439.0,0.00049589,120]
[358650636,1745335861350,-189.0,0.00049589,60]
[358650637,1745335861359,-189.0,0.00049589,60]
[358650638,1745335861369,-189.0,0.00049589,60]
[358650639,1745335861378,-189.0,0.00049589,60]
[358650640,1745335861387,-189.0,0.00049589,60]
[358650641,1745335861397,-189.0,0.00049589,60]
[358650642,1745335861407,-189.0,0.00049589,60]
[358650643,1745335861416,-189.0,0.00049589,60]
[358650644,1745335861425,-189.0,0.00049589,60]
[358650645,1745335861435,-189.0,0.00049589,60]
[358650646,1745335861444,-189.0,0.00049589,60]
[358650647,1745335861454,-189.0,0.00049589,60]
[358650648,1745335861464,-189.0,0.00049589,60]
[358650649,1745335861476,-200.0,0.00049608,30]
[358650650,1745335861486,-1000.0,0.0004966,14]
[358650651,1745335861496,-1185.22251983,0.0004967,120]
[358650652,1745335861506,-843.17,0.00049677,2]
[358650653,1745335861516,-1107.47199131,0.0004968,120]
[358650654,1745335861526,-15324.0,0.000497,10]
[358650655,1745335861535,-161.58,0.00049704,30]
[358650656,1745335861545,-161.58,0.00049704,30]
[358650657,1745335861554,-161.58,0.00049704,30]
[358650658,1745335861564,-161.58,0.00049704,30]
[358650659,1745335861574,-161.58,0.00049704,30]
[358650660,1745335861584,-2008.0781,0.0004972,3]
[358650661,1745335861594,-2000.0,0.0004972,3]
[358650662,1745335861603,-210.54720763,0.00049726,30]
[358650663,1745335861612,-150.0,0.00049726,30]
[358650664,1745335861622,-509.12605429,0.00049726,30]
[358650665,1745335861631,-251.8280485,0.00049726,30]
[358650666,1745335861641,-394.17192153,0.0004977,120]
[358650667,1745335861650,-1000.0,0.00049797,14]
[358650668,1745335861659,-200.0,0.000498,80]
[358650669,1745335861669,-674.73591113,0.000498,30]
[358650670,1745335861679,-1678.18810127,0.000498,120]
[358650671,1745335861688,-4790.46781375,0.000498,120]
[358650672,1745335861698,-439.0,0.00049863,120]
[358650673,1745335861707,-3356.12928232,0.0004988,30]
[358650674,1745335861717,-141656.40798897,0.0004988,120]
[358650675,1745335861728,-160.916526,0.0004988,120]
[358650676,1745335861738,-176.148123,0.0004988,120]
[358650677,1745335861748,-176.148123,0.0004988,120]
[358650678,1745335861758,-349.917181,0.0004988,120]
[358650679,1745335861768,-349.917181,0.0004988,120]
[358650680,1745335861781,-151.0,0.0004988,120]
[358650681,1745335861791,-3780.561063,0.0004988,120]
[358650682,1745335861800,-3780.561063,0.0004988,120]
[358650683,1745335861811,-166.531415,0.0004988,120]
[358650684,1745335861821,-151.0,0.0004988,120]
[358650685,1745335861831,-151.0,0.0004988,120]
[358650686,1745335861840,-231.879686,0.0004988,120]
[358650687,1745335861850,-231.879686,0.0004988,120]
[358650688,1745335861859,-824.702684,0.0004988,120]
[358650689,1745335861869,-824.702684,0.0004988,120]
[358650690,1745335861878,-4000.0,0.000499,2]
[358650691,1745335861887,-1000.0,0.00049934,14]
[358650692,1745335861897,-500.0,0.00049969,120]
[358650693,1745335861907,-2000.0,0.00049969,120]
[358650694,1745335861920,-500.0,0.00049969,120]
[358650695,1745335861931,-500.0,0.00049969,120]
[358650696,1745335861941,-200.0,0.00049969,120]
[358650697,1745335861951,-1071.0,0.00049986,30]
[358650698,1745335861961,-27878.03616491,0.0004999,2]
[358650699,1745335861983,-632.6,0.0004999,2]
[358650700,1745335861996,-7246.8329845,0.0004999,2]
[358650701,1745335862102,-151.0,0.000249,7]
[358650702,1745335862112,-7108.6599249,0.0004999,2]
[358650703,1745335862122,-151.0,0.00049999,120]
[358650704,1745335862133,-32439.98533115,0.0005,2]
[358650705,1745335862145,-7558.41776409,0.0005,2]
[358650716,1745336633676,-460.53738218,0.00019806,2]
[358650717,1745336633701,-150.0,0.00019876,2]
[358650718,1745336633722,-250.0,0.0001988,2]
[358650719,1745336633745,-150.0,0.00019888,2]
[358650720,1745336633769,-300.0,0.00019899,2]
[358650721,1745336633790,-500.0,0.000199,2]
[358650722,1745336633810,-189.46261782,0.000199,2]
[358650723,1745336644733,-164.6009621,0.000198,2]
[358650724,1745336644758,-250.0,0.0001985,2]
[358650725,1745336644783,-150.0,0.0001985,2]
[358650726,1745336644808,-300.0,0.00019899,2]
[358650727,1745336644833,-1135.3990379,0.000199,2]
[358650728,1745336657150,-2000.0,0.000199,2]
[358650729,1745336665586,-2000.0,0.000199,2]
[358650730,1745336675093,-2000.0,0.000199,2]
[358650731,1745336687260,-243.11719965,0.00019801,2]
[358650732,1745336687284,-1756.88280035,0.000199,2]
[358650733,1745336695212,-2000.0,0.000199,2]
[358650735,1745336705051,-2000.0,0.000199,2]
[358650736,1745336714947,152.52139644,0.00019801,20]
[358650737,1745336719154,-1000.0,0.000199,2]
[358650738,1745336856743,200000.0,0.000285,120]
[358650739,1745336890178,1920.6,0.00018967,2]
[358650740,1745336894547,10000.0,0.000285,120]
[358650741,1745336902250,10000.0,0.000285,120]
[358650742,1745336909872,10000.0,0.000285,120]
[358650744,1745336921459,2677.0,0.000285,120]
[358650757,1745337032342,-452.3697946,0.000199,2]
[358650758,1745337032354,-2965.77374933,0.000199,2]
[358650759,1745337032365,-150.0,0.00019938,2]
[358650760,1745337032376,-170.33371239,0.0001995,2]
[358650761,1745337032386,-250.0,0.00019975,2]
[358650762,1745337032396,-164.6009621,0.0002005,2]
[358650763,1745337032407,-250.0,0.00021,2]
[358650764,1745337032419,-583.62672835,0.00021889,2]
[358650765,1745337032493,-316.37327165,0.00021889,2]
[358650766,1745337032504,-95.26787834,0.0002189,2]
[358650767,1745337032517,-154.73212166,0.0002189,2]
[358650768,1745337032527,-150.0,0.0002189,2]
[358650769,1745337032538,-150.0,0.0002189,2]
[358650770,1745337032548,-250.0,0.0002189,2]
[358650771,1745337032560,-150.0,0.0002189,2]
[358650772,1745337032571,-300.0,0.00022899,2]
[358650773,1745337032581,-999.99,0.00022899,2]
[358650774,1745337032591,-421.27,0.00022899,2]
[358650775,1745337032601,-150.99,0.00022899,2]
[358650776,1745337032612,-6531.51338428,0.000229,4]
[358650777,1745337032622,-300.0,0.00023,2]
[358650778,1745337032633,-150.99,0.00023,2]
[358650779,1745337032644,-151.0,0.000249,7]
[358650780,1745337032654,-151.0,0.000249,7]
[358650781,1745337032665,-151.0,0.000249,7]
[358650782,1745337032674,-195.208495,0.000249,7]
[358650783,1745337032685,-251.148032,0.000249,7]
[358650784,1745337032695,-151.0,0.000249,7]
[358650785,1745337032705,-151.0,0.000249,7]
[358650786,1745337032715,-151.0,0.000249,7]
[358650788,1745337032733,-175.442798,0.000249,7]
[358650789,1745337032755,-151.0,0.000249,7]
[358650790,1745337032773,-161.89654835,0.0002495,2]
[358650791,1745337032793,-350.0,0.00025,2]
[358650792,1745337032817,-504.712255,0.000255,2]
[358650795,1745337032834,-191.02380763,0.00026028,2]
[358650799,1745337032854,-32714.10845807,0.00026028,2]
[358650807,1745337032926,-1234.52556814,0.00026028,2]
[358650811,1745337032950,-2720.718,0.00026028,2]
[358650814,1745337032974,-620.62754011,0.00026028,2]
[358650963,1745337039263,-5763.74605306,0.00026028,2]
[358650964,1745337039274,-500.0,0.00026073,2]
[358650965,1745337039283,-250.0,0.00026294,2]
[358650966,1745337039293,-258.65394693,0.00027,2]
[358650967,1745337039541,-141.34605307,0.00027,2]
[358650969,1745337039551,-20683.16498392,0.00028827,2]
[358650970,1745337039563,-804.92409173,0.00028827,2]
[358651060,1745337040470,-2411.91092435,0.00028827,2]
[358651062,1745337040481,-450.0,0.00029,2]
[358651064,1745337040490,-500.0,0.00029014,2]
[358651066,1745337040499,-794.0,0.000304,2]
[358651068,1745337040509,-876.0,0.000304,2]
[358651070,1745337040519,-379.42,0.00031047,2]
[358651071,1745337040528,-500.0,0.00031552,5]
[358651073,1745337040537,-1000.0,0.00032417,2]
[358651075,1745337040547,-572.8,0.00032904,30]
[358651077,1745337040573,-379.42,0.00033311,2]
[358651079,1745337040583,-876.0,0.000334,2]
[358651081,1745337040592,-1500.0,0.00034485,120]
[358651083,1745337040603,-250.0,0.00034485,2]
[358651085,1745337040612,-150.0,0.00034548,10]
[358651087,1745337040621,-1000.0,0.00034929,2]
[358651089,1745337040631,-379.42,0.00035574,2]
[358651091,1745337040640,-1338.0508798,0.00036,120]
[358651093,1745337040649,-876.0,0.000364,2]
[358651095,1745337040658,-1000.0,0.0003647,2]
[358651096,1745337040668,-243.78506818,0.000372,120]
[358651098,1745337040678,-243.78506816,0.000372,120]
[358651100,1745337040687,-200.0,0.00037394,2]
[358651102,1745337040697,-156.22,0.00037658,2]
[358651104,1745337040707,-379.42,0.00037838,2]
[358651106,1745337040717,-243.78506816,0.0003797,120]
[358651108,1745337040727,-2592.01,0.00037982,2]
[358651110,1745337040737,-815.184,0.00038352,2]
[358651112,1745337040746,-1544.548,0.00038571,52]
[358651114,1745337040756,-181.016,0.00038571,52]
[358651116,1745337040766,-1000.0,0.00039283,2]
[358651118,1745337040775,-876.0,0.000394,2]
[358651120,1745337040785,-502.0,0.0003989,2]
[358651122,1745337040794,-151.0,0.00039999,14]
[358651124,1745337040804,-162.95,0.0004,30]
[358651126,1745337040814,-379.42,0.00040102,2]
[358651128,1745337040824,-150.01,0.00040443,2]
[358651130,1745337040833,-160.38,0.00040502,2]
[358651132,1745337040843,-1000.0,0.00040522,2]
[358651134,1745337040853,-250.0,0.00040646,7]
[358651136,1745337040863,-547.1375,0.00040888,7]
[358651138,1745337040872,-164.14127,0.00040888,30]
[358651140,1745337040882,-1852.42,0.0004098,2]
[358651142,1745337040891,-172.0,0.00041,14]
[358651144,1745337040901,-164.14127,0.00041088,30]
[358651146,1745337040910,-359.33,0.00041095,120]
[358651148,1745337040920,-164.14127,0.00041288,30]
[358651150,1745337040929,-190.89,0.00041324,2]
[358651152,1745337040939,-560.79256418,0.00041388,54]
[358651154,1745337040949,-151.0,0.000414,14]
[358651155,1745337040958,-151.0,0.000414,14]
[358651158,1745337040969,-1000.0,0.00041402,2]
[358651159,1745337040978,-1999.7199,0.00041402,2]
[358651161,1745337040987,-164.14127,0.00041488,30]
[358651163,1745337040996,-2434.02,0.00041502,120]
[358651165,1745337041006,-167.86,0.00041502,2]
[358651167,1745337041015,-572.8,0.00041619,30]
[358651169,1745337041025,-164.14127,0.00041688,30]
[358651171,1745337041035,-164.14127,0.00041888,30]
[358651173,1745337041045,-164.14127,0.00042088,30]
[358651175,1745337041054,-191.53,0.00042099,120]
[358651177,1745337041064,-164.14127,0.00042288,30]
[358651179,1745337041074,-379.42,0.00042366,2]